bitfinex-derivatives/quotes_SOLF0:USTF0_20250709
["timestamp","ask_amount","ask_price","bid_price","bid_amount"]
[1752068061574,0.0445274,154.21,154.2,10.25239452]
[1752068062269,0.0445274,154.21,154.17,0.04141488]
[1752068062270,0.0445274,154.21,154.19,6.4844]
[1752068062477,0.0445274,154.21,154.18,3.76829452]
[1752068063768,6.5285274,154.21,154.19,6.4844]
[1752068064573,3.81282192,154.21,154.17,0.04141488]
[1752068064974,6.485,154.18,154.17,0.04141488]
[1752068065175,3.76829452,154.19,154.12,1.0]
[1752068065370,0.0445274,154.21,154.1,8.25809452]
[1752068065371,6.4871,154.13,154.1,8.25809452]
[1752068065583,3.76829452,154.17,154.1,6.09969452]
[1752068065881,6.4871,154.13,154.1,10.25649452]
[1752068066274,6.4871,154.13,154.1,3.76829452]
[1752068066476,6.53402329,154.13,154.06,3.1584]
[1752068066676,6.53402329,154.13,154.09,3.76829452]
[1752068066879,0.04692329,154.13,154.11,3.76829452]
[1752068067082,0.04692329,154.13,154.08,1.0]
[1752068067277,0.04692329,154.13,154.1,3.76829452]
[1752068067672,0.04692329,154.13,154.11,3.76829452]
[1752068068580,6.4852,154.18,154.11,3.76829452]
[1752068068779,6.4852,154.18,154.14,3.76829452]
[1752068068975,3.76829452,154.23,154.17,6.4853]
[1752068069181,3.76829452,154.23,154.16,3.76829452]
[1752068069679,3.76829452,154.23,154.16,10.25369452]
[1752068070080,6.4845,154.2,154.16,10.25369452]
[1752068070279,6.4845,154.2,154.17,6.4854]
[1752068070681,3.76829452,154.23,154.16,3.76829452]
[1752068070981,6.4844,154.2,154.17,6.4854]
[1752068071177,3.76829452,154.23,154.16,3.76829452]
[1752068071682,6.485,154.18,154.14,3.76829452]
[1752068072085,3.76829452,154.21,154.14,3.76829452]
[1752068072287,6.485,154.18,154.15,6.486]
[1752068072788,6.4847,154.19,154.16,6.4858]
[1752068072982,3.76829452,154.21,154.14,3.76829452]
[1752068073582,6.4846,154.19,154.15,6.486]
[1752068073783,3.76829452,154.21,154.15,6.486]
[1752068074079,3.76829452,154.21,154.14,3.76829452]
[1752068074386,3.76829452,154.19,154.12,3.76829452]
[1752068074786,6.486,154.16,154.13,6.4868]
[1752068074985,3.76829452,154.19,154.1,4.76829452]
[1752068075184,3.76829452,154.17,154.1,3.76829452]
[1752068075379,6.4863,154.15,154.11,6.4875]
[1752068075586,3.76829452,154.17,154.11,6.4875]
[1752068075988,6.487,154.14,154.11,6.4875]
[1752068076588,6.487,154.14,154.12,6.4875]
[1752068076980,3.76829452,154.17,154.1,3.76829452]
[1752068077184,3.76829452,154.19,154.08,3.76829452]
[1752068077385,4.72695022,154.18,154.12,3.76829452]
[1752068077688,6.486,154.16,154.13,6.4871]
[1752068078080,6.4863,154.15,154.12,3.76829452]
[1752068078289,3.76829452,154.19,154.12,3.76829452]
[1752068078887,3.76829452,154.19,154.14,6.4866]
[1752068079086,3.76829452,154.21,154.14,6.4866]
[1752068079390,6.4858,154.17,154.14,6.4866]
[1752068079989,3.76829452,154.21,154.13,3.76829452]
[1752068080189,4.68520775,154.2,154.13,3.76829452]
[1752068080393,6.4859,154.16,154.13,3.76829452]
[1752068081395,6.4859,154.16,154.13,10.25519452]
[1752068081795,6.4863,154.15,154.12,6.4873]
[1752068083396,3.76829452,154.17,154.1,3.76829452]
[1752068083596,3.76829452,154.15,154.08,1.0]
[1752068083795,3.76829452,154.15,154.08,10.25709452]
[1752068084187,4.76262739,154.14,154.08,3.76829452]
[1752068084388,6.4888,154.09,154.06,10.25809452]
[1752068084896,6.4882,154.11,154.08,10.25729452]
[1752068086097,6.4882,154.11,154.09,6.4887]
[1752068086294,6.4877,154.12,154.09,6.4887]
[1752068086796,6.4877,154.12,154.08,10.25729452]
[1752068087095,6.488,154.11,154.08,10.25729452]
[1752068087292,3.76829452,154.14,154.06,6.4897]
[1752068087495,4.75744675,154.13,154.06,10.25799452]
[1752068087691,3.76829452,154.14,154.06,3.76829452]
[1752068087886,4.75764646,154.13,154.07,6.4896]
[1752068088087,6.4886,154.1,154.07,6.4896]
[1752068088289,3.76829452,154.14,154.07,6.4896]
[1752068088595,6.4894,154.08,154.04,560.0]
[1752068088790,3.76829452,154.1,154.01,4.4968]
[1752068089094,6.4903,154.06,154.03,6.4912]
[1752068089791,3.76829452,154.09,154.03,3.76829452]
[1752068089997,3.76829452,154.09,154.03,0.04188664]
[1752068090396,6.4903,154.06,154.03,0.04188664]
[1752068090597,3.76829452,154.09,154.03,0.04188664]
[1752068091797,6.4907,154.05,154.03,0.04188664]
[1752068091992,3.76829452,154.07,154.03,0.04188664]
[1752068092504,6.4909,154.04,154.03,0.04188664]
[1752068093299,3.76829452,154.07,154.03,0.04188664]
[1752068093699,6.4909,154.04,154.03,0.04188664]
[1752068094402,6.4901,154.06,154.03,6.53318664]
[1752068094605,3.76829452,154.07,154.03,0.04188664]
[1752068094995,3.76829452,154.05,154.03,0.04188664]
[1752068095195,3.76829452,154.05,153.98,3.76829452]
[1752068095196,3.76829452,154.05,153.96,4.76829452]
[1752068095407,3.76829452,154.03,153.96,3.76829452]
[1752068095604,6.4928,154.0,153.97,6.4937]
[1752068095802,3.76829452,154.03,153.94,3.76829452]
[1752068096199,3.76829452,153.99,153.93,4.5765]
[1752068096708,6.494,153.97,153.93,6.4952]
[1752068096901,3.76829452,153.99,153.93,6.4952]
[1752068097205,3.76829452,153.99,153.91,3.76829452]
[1752068097505,0.04961363,153.98,153.89,4.5765]
[1752068097702,0.04961363,153.98,153.95,3.76829452]
[1752068098002,0.04961363,153.98,153.95,10.26269452]
[1752068098302,0.04961363,153.98,153.95,6.4944]
[1752068098500,0.04961363,153.98,153.94,3.76829452]
[1752068099007,0.04961363,153.98,153.96,6.4938]
[1752068099305,0.04961363,153.98,153.96,3.76829452]
[1752068099905,0.04961363,153.98,153.97,6.4938]
[1752068100108,0.01342916,153.98,153.97,6.4938]
[1752068100304,8.39229452,154.09,153.97,6.5]
[1752068100612,8.39229452,154.09,153.97,2.2151]
[1752068101012,4.624,154.09,153.97,2.2151]
[1752068101208,5.65969885,154.06,153.97,7.87479885]
[1752068101404,6.4916,154.03,154.01,0.04749752]
[1752068101911,5.65969885,154.04,153.96,6.4939]
[1752068102112,5.70699993,154.04,153.95,5.65969885]
[1752068102413,6.4925,154.01,153.95,5.65969885]
[1752068102809,5.65969885,154.04,153.95,5.65969885]
[1752068103005,4.624,154.09,153.99,5.65969885]
[1752068103313,0.04443221,154.01,153.95,1.0]
[1752068103610,4.624,154.09,154.02,0.04664905]
[1752068103812,4.624,154.09,154.02,5.65969885]
[1752068104013,6.4894,154.08,154.02,5.65969885]
[1752068104214,5.65969885,154.12,154.04,5.65969885]
[1752068104412,6.4886,154.1,154.06,6.4898]
[1752068104807,6.4886,154.1,154.06,6.53136941]
[1752068105010,5.65969885,154.12,154.06,0.04156941]
[1752068105204,5.65969885,154.1,154.06,0.04156941]
[1752068106106,5.65969885,154.08,153.97,5.65969885]
[1752068106310,5.65969885,154.06,153.97,5.65969885]
[1752068107114,6.4915,154.03,153.99,6.4927]
[1752068107314,6.53701936,154.03,153.97,5.65969885]
[1752068107710,0.04551936,154.03,153.97,5.65969885]
[1752068107915,0.04551936,154.03,153.99,5.65969885]
[1752068108317,6.4902,154.06,154.02,6.4917]
[1752068108507,0.04767161,154.03,154.02,6.4917]
[1752068108712,0.04767161,154.03,153.99,5.65969885]
[1752068108713,0.04767161,154.03,154.01,6.4919]
[1752068108912,4.6001,154.07,153.99,5.65969885]
[1752068109111,0.04136109,154.04,153.99,5.65969885]
[1752068109314,0.04136109,154.04,154.02,6.4913]
[1752068109818,0.04136109,154.04,154.03,6.4913]
[1752068110815,4.4507,154.12,154.07,6.4894]
[1752068111014,4.4507,154.12,154.05,5.65969885]
[1752068111215,560.52,154.13,154.05,5.65969885]
[1752068111517,567.0072,154.13,154.09,6.4884]
[1752068111714,5.65969885,154.13,154.03,4.6088]
[1752068111920,6.488,154.11,154.07,6.4893]
[1752068112216,5.65969885,154.13,154.06,0.04798944]
[1752068112723,5.65969885,154.11,154.06,0.04798944]
[1752068113012,5.65969885,154.09,154.06,0.04798944]
[1752068113216,5.65969885,154.09,154.01,5.65969885]
[1752068113217,6.4901,154.06,154.02,6.4915]
[1752068113919,6.4901,154.06,154.02,6.53903691]
[1752068114218,6.4905,154.05,154.02,6.53903691]
[1752068114517,5.65969885,154.07,154.02,0.04753691]
[1752068114913,6.4913,154.03,154.02,0.04753691]
[1752068117020,6.491,154.04,154.02,0.04753691]
[1752068117318,5.65969885,154.08,154.02,0.04753691]
[1752068117620,5.65969885,154.08,154.02,6.53903691]
[1752068117814,5.65969885,154.08,154.02,0.04753691]
[1752068118218,5.65969885,154.06,154.02,0.04753691]
[1752068118818,6.4913,154.03,154.02,0.04753691]
[1752068119520,6.491,154.04,154.02,0.04753691]
[1752068119820,5.65969885,154.08,154.02,0.04753691]
[1752068120022,6.4911,154.04,154.02,0.04753691]
[1752068120520,5.65969885,154.06,154.02,0.04753691]
[1752068122422,5.65969885,154.07,154.02,0.04753691]
[1752068122721,2.3633,154.09,154.02,0.04753691]
[1752068122915,2.2304,154.1,154.02,5.70723576]
[1752068123215,2.2304,154.1,154.05,6.4902]
[1752068123917,6.4894,154.08,154.06,0.04118757]
[1752068124315,6.4888,154.09,154.06,0.04118757]
[1752068124512,560.52,154.11,154.06,0.04118757]
[1752068124717,130.33240084,154.12,154.06,0.04118757]
[1752068124917,130.33240084,154.12,154.07,6.4893]
[1752068125116,130.33240084,154.12,154.06,5.70088642]
[1752068125320,4.5025,154.15,154.06,5.70088642]
[1752068125522,0.04089993,154.11,154.06,5.70088642]
[1752068125720,0.04089993,154.11,154.08,5.65969885]
[1752068126122,0.04089993,154.11,154.1,5.65969885]
[1752068126621,0.04089993,154.11,154.07,4.3698]
[1752068127017,0.04089993,154.11,154.08,6.4889]
[1752068127614,0.04089993,154.11,154.09,6.4886]
[1752068127818,0.04089993,154.11,154.08,5.65969885]
[1752068128014,0.04089993,154.11,154.09,6.4885]
[1752068128221,0.04089993,154.11,154.08,5.65969885]
[1752068128714,0.04089993,154.11,154.09,6.4885]
[1752068129319,0.04089993,154.11,154.08,12.14869885]
[1752068129519,0.04089993,154.11,154.08,5.65969885]
[1752068130216,0.04089993,154.11,154.06,0.04118757]
[1752068130918,5.70059878,154.11,154.06,0.04118757]
[1752068131521,6.4896,154.07,154.06,0.04118757]
[1752068140229,0.04089993,154.11,154.06,6.54118757]
[1752068140432,570.77499254,154.19,154.09,5.65619254]
[1752068140630,5.65619254,154.17,154.07,4.6347]
[1752068140828,5.65619254,154.15,154.07,6.4894]
[1752068141127,5.65619254,154.15,154.04,5.65619254]
[1752068141329,5.65619254,154.15,154.08,6.4889]
[1752068141531,5.65619254,154.15,154.04,5.65619254]
[1752068141725,5.65619254,154.15,154.08,0.04443648]
[1752068142427,6.4871,154.13,154.09,6.4883]
[1752068142924,5.65619254,154.15,154.09,6.4883]
[1752068143325,5.65619254,154.15,154.08,6.53353648]
[1752068143524,6.488,154.11,154.08,6.53353648]
[1752068144030,6.4877,154.12,154.08,6.53353648]
[1752068144229,6.4877,154.12,154.09,6.4886]
[1752068144430,5.65619254,154.15,154.08,0.04443648]
[1752068144629,565.1188,154.19,154.08,5.70062902]
[1752068144630,5.65619254,154.17,154.08,5.70062902]
[1752068145125,6.487,154.14,154.08,5.65619254]
[1752068145328,6.487,154.14,154.11,0.04795177]
[1752068145629,6.4873,154.13,154.11,0.04795177]
[1752068146332,6.4875,154.12,154.11,0.04795177]
[1752068149734,5.69884093,154.13,154.06,6.4899]
[1752068150125,5.65619254,154.12,154.02,6.65619254]
[1752068150330,5.65619254,154.12,154.07,6.4896]
[1752068150633,6.489,154.09,154.07,6.4896]
[1752068151237,6.4896,154.07,154.02,6.65619254]
[1752068151435,5.66188092,154.06,153.97,18.1079961]
[1752068151632,5.66188092,154.05,153.95,10.19368092]
[1752068151836,6.4913,154.04,153.95,28.30167702]
[1752068152032,5.66266039,154.05,153.96,5.66266039]
[1752068152427,6.4915,154.03,153.99,6.4927]
[1752068152632,5.66266039,154.03,153.95,4.5318]
[1752068153332,7.87045936,154.07,153.95,4.5318]
[1752068153531,6.492,154.02,153.98,6.4933]
[1752068153732,5.66266039,154.04,153.95,4.5318]
[1752068154130,5.66266039,154.04,153.97,6.4936]
[1752068154436,5.66266039,154.02,153.95,2.22]
[1752068154633,6.4928,154.0,153.96,6.494]
[1752068155329,6.493,153.99,153.96,6.494]
[1752068156334,6.493,153.99,153.95,2.22]
[1752068156335,6.493,153.99,153.95,8.7145]
[1752068156636,6.4928,154.0,153.95,2.22]
[1752068156838,6.4928,154.0,153.96,6.4941]
[1752068157537,6.493,153.99,153.95,8.7145]
[1752068158035,6.4955,153.94,153.9,18.1079961]
[1752068158237,5.66266039,153.95,153.88,18.1079961]
[1752068158442,5.66266039,153.93,153.87,18.1079961]
[1752068158737,5.66266039,153.93,153.88,6.4976]
[1752068158738,6.496,153.92,153.88,6.4976]
[1752068159133,6.496,153.92,153.84,7.88436039]
[1752068159134,12.15816039,153.93,153.89,6.4971]
[1752068159329,5.66266039,153.95,153.84,7.88436039]
[1752068159928,6.496,153.92,153.87,6.4979]
[1752068160133,6.496,153.92,153.84,2.2217]
[1752068160335,6.496,153.92,153.84,7.88436039]
[1752068160533,5.66266039,153.95,153.86,5.66266039]
[1752068161034,6.4954,153.94,153.9,6.4966]
[1752068161232,2.1838,153.97,153.84,20.3296961]
[1752068161434,2.1471,153.98,153.89,5.66266039]
[1752068161629,5.66266039,153.97,153.88,5.66266039]
[1752068162341,2.1471,153.98,153.92,6.4956]
[1752068162738,5.66266039,153.97,153.88,5.66266039]
[1752068162938,6.4956,153.93,153.89,6.497]
[1752068163135,5.66266039,153.95,153.86,5.66266039]
[1752068163534,5.66266039,153.95,153.89,6.4971]
[1752068163840,5.66266039,153.95,153.86,5.66266039]
[1752068164741,6.4961,153.92,153.88,6.4973]
[1752068165231,5.66266039,153.93,153.87,6.4977]
[1752068165437,5.66266039,153.93,153.84,2.2217]
[1752068165438,5.66266039,153.93,153.84,7.88436039]
[1752068165637,5.66266039,153.93,153.84,2.2217]
[1752068165940,5.66266039,153.93,153.84,7.88436039]
[1752068166340,6.4962,153.92,153.88,6.4974]
[1752068166542,5.66266039,153.93,153.84,7.88436039]
[1752068167234,2.3067,153.97,153.85,5.66266039]
[1752068167543,2.3067,153.97,153.84,2.2217]
[1752068167544,5.66266039,153.96,153.87,5.66266039]
[1752068167741,7.96936039,153.97,153.89,5.66266039]
[1752068167940,2.3067,153.97,153.89,5.66266039]
[1752068168137,2.1471,153.98,153.93,6.4954]
[1752068168639,2.1471,153.98,153.94,6.495]
[1752068169041,2.1471,153.98,153.9,5.66266039]
[1752068169240,2.1471,153.98,153.92,6.4955]
[1752068169742,6.4941,153.97,153.93,6.4954]
[1752068169932,2.1471,153.98,153.9,5.66266039]
[1752068170137,7.80976039,153.98,153.9,6.4965]
[1752068170338,7.80976039,153.98,153.89,5.66266039]
[1752068170546,7.80976039,153.98,153.88,5.66266039]
[1752068170734,5.66266039,153.96,153.86,5.66266039]
[1752068171238,2.1471,153.98,153.88,6.4973]
[1752068171239,6.4962,153.92,153.88,6.4973]
[1752068171435,5.66266039,153.94,153.84,2.2217]
[1752068171846,5.66266039,153.94,153.88,6.4976]
[1752068172042,5.66266039,153.94,153.84,7.88436039]
[1752068172443,5.66266039,153.9,153.79,561.5]
[1752068172645,5.66266039,153.9,153.8,5.66266039]
[1752068172845,6.4982,153.87,153.83,6.4997]
[1752068173039,5.66266039,153.9,153.83,6.4997]
[1752068173244,5.66266039,153.88,153.79,562.6808]
[1752068173646,5.66266039,153.86,153.77,5.66266039]
[1752068174144,15.3027,153.93,153.78,5.66266039]
[1752068174145,5.66266039,153.87,153.78,5.66266039]
[1752068174742,5.66266039,153.85,153.76,1.0]
[1752068174937,2.2305,153.86,153.76,5.66266039]
[1752068175142,6.4994,153.84,153.78,5.66266039]
[1752068175547,560.98,153.9,153.8,5.66266039]
[1752068175943,566.64266039,153.9,153.8,5.66266039]
[1752068176145,560.98,153.9,153.74,5.5822]
[1752068176346,6.498,153.87,153.83,6.4994]
[1752068177150,5.66266039,153.87,153.74,5.5822]
[1752068177346,5.66266039,153.87,153.78,5.66266039]
[1752068178647,5.66266039,153.87,153.79,6.5012]
[1752068179051,5.66266039,153.87,153.78,5.66266039]
[1752068179251,6.4993,153.84,153.79,6.5011]
[1752068179653,5.66266039,153.87,153.79,6.5011]
[1752068179954,560.98,153.9,153.77,5.66266039]
[1752068180154,5.66266039,153.88,153.79,5.66266039]
[1752068180354,6.4993,153.85,153.79,5.66266039]
[1752068180956,6.4993,153.85,153.81,6.5003]
[1752068181456,6.4993,153.85,153.79,5.66266039]
[1752068181655,5.66266039,153.88,153.79,5.66266039]
[1752068181853,2.2305,153.92,153.81,5.66266039]
[1752068182056,2.2305,153.92,153.86,6.4982]
[1752068182355,2.2305,153.92,153.85,5.66266039]
[1752068182556,2.2305,153.92,153.87,6.4977]
[1752068182749,2.2305,153.92,153.85,5.66266039]
[1752068182952,5.66266039,153.95,153.89,6.4969]
[1752068183146,6.4951,153.94,153.87,5.66266039]
[1752068183345,561.12,153.97,153.87,5.66266039]
[1752068183346,10.04467963,153.96,153.87,5.66266039]
[1752068183556,4.38201924,153.95,153.9,6.4967]
[1752068183753,6.4948,153.95,153.89,5.66266039]
[1752068183946,561.12,153.97,153.89,5.66266039]
[1752068184146,561.12,153.97,153.9,6.4965]
[1752068184346,6.4958,153.93,153.82,5.6573]
[1752068184553,5.66266039,153.96,153.86,5.66266039]
[1752068184761,5.66266039,153.96,153.89,6.4972]
[1752068184952,5.66266039,153.96,153.86,5.66266039]
[1752068185255,5.66266039,153.96,153.89,6.4968]
[1752068185653,5.66266039,153.96,153.83,62.0]
[1752068185654,5.66266039,153.94,153.83,62.0]
[1752068185857,5.66266039,153.92,153.82,5.6573]
[1752068186055,6.4971,153.9,153.83,5.66266039]
[1752068186452,5.66266039,153.92,153.87,6.498]
[1752068186757,5.66266039,153.94,153.85,5.66266039]
[1752068187454,6.4964,153.91,153.87,6.4978]
[1752068188061,6.4959,153.93,153.88,6.4976]
[1752068188256,5.66266039,153.95,153.88,6.4976]
[1752068188961,5.66266039,153.96,153.87,5.66266039]
[1752068189160,566.78266039,153.97,153.87,5.66266039]
[1752068189660,6.4957,153.93,153.89,6.4969]
[1752068190258,6.4959,153.92,153.89,6.4969]
[1752068190454,566.78266039,153.97,153.89,6.4969]
[1752068190760,6.4958,153.93,153.9,6.4966]
[1752068190960,566.78266039,153.97,153.9,6.4966]
[1752068191454,561.12,153.97,153.89,5.66266039]
[1752068192654,10.10236039,153.98,153.82,18.6574]
[1752068192655,4.4397,153.98,153.91,5.66266039]
[1752068192861,6.494,153.97,153.91,5.66266039]
[1752068193361,5.66266039,153.97,153.89,5.66266039]
[1752068193859,5.66266039,153.97,153.88,5.66266039]
[1752068194656,6.495,153.95,153.91,6.4963]
[1752068195065,6.4944,153.96,153.92,6.4957]
[1752068195665,6.4947,153.95,153.92,6.4957]
[1752068195963,2.2327,154.0,153.92,5.66266039]
[1752068196163,6.4935,153.98,153.92,5.66266039]
[1752068196362,6.4935,153.98,153.94,6.4947]
[1752068196562,2.2327,154.0,153.92,5.66266039]
[1752068196763,5.66266039,153.97,153.89,2.3632]
[1752068197066,5.66266039,153.95,153.86,5.66266039]
[1752068197263,6.4957,153.93,153.86,5.66266039]
[1752068197466,5.66266039,153.95,153.88,6.4973]
[1752068197668,5.66266039,153.93,153.84,11.29886039]
[1752068198167,6.4965,153.91,153.87,6.4979]
[1752068198571,6.497,153.9,153.86,6.4981]
[1752068198766,5.66266039,153.93,153.86,6.4981]
[1752068199171,5.66266039,153.93,153.85,6.4987]
[1752068199471,5.66266039,153.91,153.84,2.3632]
[1752068199672,6.497,153.9,153.86,6.4981]
[1752068199874,5.66266039,153.93,153.84,8.02586039]
[1752068200269,6.4966,153.91,153.87,6.498]
[1752068200876,6.4966,153.91,153.88,6.4975]
[1752068201066,6.4961,153.92,153.88,6.4975]
[1752068201266,2.3625,153.94,153.86,5.66266039]
[1752068201773,6.4946,153.95,153.91,6.4961]
[1752068202576,5.66266039,153.98,153.91,6.4961]
[1752068202778,5.66266039,153.96,153.86,6.66266039]
[1752068202975,4.47769716,153.95,153.86,5.66266039]
[1752068203176,10.14016901,153.94,153.86,6.4984]
[1752068203375,5.66266039,153.92,153.86,6.4984]
[1752068203576,2.1832,153.93,153.84,8.02586039]
[1752068203781,6.4966,153.91,153.84,8.02586039]
[1752068203978,2.1832,153.93,153.86,5.66266039]
[1752068204180,6.4962,153.92,153.88,6.4973]
[1752068204479,6.4962,153.92,153.86,5.66266039]
[1752068204775,6.496,153.92,153.86,5.66266039]
[1752068205281,6.496,153.92,153.88,6.4973]
[1752068205775,8.6789,153.93,153.86,5.66266039]
[1752068206577,6.4957,153.93,153.89,6.497]
[1752068206882,6.4953,153.94,153.88,5.66266039]
[1752068207182,6.4953,153.94,153.9,6.4965]
[1752068207382,6.4955,153.93,153.9,6.4965]
[1752068207773,6.4953,153.94,153.9,6.4965]
[1752068207971,5.66266039,153.96,153.9,6.4965]
[1752068208180,5.66266039,153.96,153.87,5.66266039]
[1752068208583,6.4962,153.92,153.88,6.4973]
[1752068209285,6.4962,153.92,153.87,5.66266039]
[1752068209477,6.4957,153.93,153.87,5.66266039]
[1752068209679,5.66266039,153.96,153.87,5.66266039]
[1752068210081,6.4966,153.91,153.85,5.66266039]
[1752068210878,5.66266039,153.94,153.85,5.66266039]
[1752068211279,6.4964,153.91,153.88,6.4974]
[1752068211484,5.66266039,153.96,153.87,5.66266039]
[1752068211880,5.66266039,153.96,153.9,6.4965]
[1752068212285,5.66266039,153.98,153.87,5.66266039]
[1752068212682,2.2035,153.99,153.91,5.66266039]
[1752068212978,561.04,154.01,153.93,5.66266039]
[1752068213386,561.04,154.01,153.95,6.4945]
[1752068213588,561.04,154.01,153.93,5.66266039]
[1752068214179,6.4932,153.99,153.93,5.66266039]
[1752068214384,561.04,154.01,153.93,5.66266039]
[1752068215481,566.70266039,154.01,153.93,5.66266039]
[1752068215886,6.4938,153.97,153.93,5.66266039]
[1752068216088,566.70266039,154.01,153.9,3.2008]
[1752068216286,566.70266039,154.01,153.91,5.66266039]
[1752068216484,6.4941,153.97,153.93,6.4953]
[1752068216680,566.70266039,154.01,153.91,5.66266039]
[1752068216989,5.66266039,153.99,153.91,5.66266039]
[1752068217286,5.66266039,153.99,153.92,6.4957]
[1752068217687,566.70266039,154.01,153.91,5.66266039]
[1752068217883,6.4935,153.98,153.93,5.66266039]
[1752068218284,6.4935,153.98,153.94,6.4948]
[1752068218485,561.04,154.01,153.94,6.4948]
[1752068218685,566.70266039,154.01,153.94,6.4948]
[1752068218989,6.4936,153.98,153.94,6.4948]
[1752068219188,2.1375,154.05,153.93,5.66266039]
[1752068219389,2.1375,154.05,153.9,25.97145649]
[1752068219589,2.1375,154.05,153.97,5.66266039]
[1752068219789,2.1375,154.05,153.98,6.4931]
[1752068219984,2.1375,154.05,153.97,5.66266039]
[1752068220388,2.1375,154.05,153.99,5.66266039]
[1752068220595,560.94,154.09,154.01,5.66266039]
[1752068220789,560.94,154.09,154.03,5.66266039]
[1752068221088,4.6208,154.12,154.03,5.66266039]
[1752068221288,4.6208,154.12,154.04,5.66266039]
[1752068221487,4.6208,154.12,154.05,6.4902]
[1752068221992,4.6208,154.12,154.04,12.15326039]
[1752068222194,4.6208,154.12,154.06,5.66266039]
[1752068222495,2.321,154.12,154.06,12.15246039]
[1752068222993,6.4882,154.11,154.07,6.4893]
[1752068223193,2.321,154.12,154.06,5.66266039]
[1752068223592,6.4883,154.11,154.06,12.15256039]
[1752068224692,2.321,154.12,154.06,5.66266039]
[1752068224892,2.321,154.12,154.04,5.66266039]
[1752068225082,6.4886,154.1,154.04,5.66266039]
[1752068225285,6.4886,154.1,154.06,5.66266039]
[1752068226085,2.321,154.12,154.04,5.66266039]
[1752068226288,7.98366039,154.12,154.04,5.66266039]
[1752068227289,6.4894,154.08,154.04,12.15326039]
[1752068227491,7.83606039,154.16,154.06,5.66266039]
[1752068227695,2.1734,154.16,154.08,5.66266039]
[1752068227896,2.3338,154.19,154.1,5.66266039]
[1752068228092,2.3338,154.19,154.03,64.3208]
[1752068228295,2.3338,154.19,154.11,5.66266039]
[1752068228496,2.3338,154.19,154.13,5.66266039]
[1752068228894,6.4854,154.17,154.13,12.14966039]
[1752068229092,2.3338,154.19,154.13,5.66266039]
[1752068229495,6.4861,154.16,154.12,5.66266039]
[1752068230097,2.3338,154.19,154.12,5.66266039]
[1752068230799,6.4868,154.14,154.12,5.66266039]
[1752068231095,6.4868,154.14,154.1,12.15086039]
[1752068231297,6.4863,154.15,154.11,6.4879]
[1752068231501,7.99646039,154.19,154.1,5.66266039]
[1752068231697,2.3338,154.19,154.12,5.66266039]
[1752068231897,6.4865,154.15,154.12,5.66266039]
[1752068232097,2.3338,154.19,154.12,5.66266039]
[1752068232692,6.4858,154.17,154.12,12.14976039]
[1752068233000,2.3338,154.19,154.12,12.14976039]
[1752068233200,6.4863,154.15,154.12,12.14976039]
[1752068233394,2.3338,154.19,154.12,12.14976039]
[1752068233594,6.4861,154.16,154.12,12.14976039]
[1752068233794,2.3338,154.19,154.12,5.66266039]
[1752068234200,6.4865,154.15,154.1,5.66266039]
[1752068234396,5.66266039,154.17,154.08,5.66266039]
[1752068234599,6.4877,154.12,154.08,5.66266039]
[1752068235196,5.66266039,154.14,154.05,3.2024]
[1752068235399,5.66266039,154.12,154.04,2.1313]
[1752068235695,6.4894,154.08,154.04,8.6219]
[1752068236094,5.66266039,154.1,154.02,566.30266039]
[1752068236301,5.66266039,154.1,154.03,6.4911]
[1752068236706,5.66266039,154.1,154.02,566.30266039]
[1752068236893,6.4898,154.07,154.04,6.4908]
[1752068237200,5.66266039,154.1,154.02,560.64]
[1752068237397,6.4895,154.08,154.04,6.4908]
[1752068237603,4.50025224,154.14,154.04,6.4908]
[1752068237797,5.66266039,154.1,154.04,6.4908]
[1752068238396,2.1862,154.15,154.02,560.64]
[1752068238699,5.66266039,154.12,154.02,566.30266039]
[1752068238890,5.66266039,154.1,154.0,1.0]
[1752068239091,5.66266039,154.08,153.99,7.79396039]
[1752068240402,6.4904,154.06,153.99,7.79396039]
[1752068240603,2.2502,154.09,154.01,5.66266039]
[1752068241101,6.4907,154.05,154.01,12.15446039]
[1752068241403,5.66266039,154.08,153.99,2.1313]
[1752068241605,6.4908,154.05,154.01,6.4919]
[1752068242105,6.4902,154.06,154.02,6.4917]
[1752068242602,6.4902,154.06,154.0,5.66266039]
[1752068242603,7.91286039,154.09,154.01,6.4918]